[Event "ENG-ch Women 2019"]
[Site "Hull"]
[Date "2019.08.31"]
[Round "2.12"]
[White "Pettit, Felicity Ol"]
[Black "Maladkar, Ritika"]
[Result "0-1"]
[ECO "A30"]
[WhiteElo "1233"]
[BlackElo "1561"]
[Annotator "NA"]
[PlyCount "82"]
[EventDate "2019.08.30"]
[EventType "swiss"]
[EventCountry "ENG"]
[SourceTitle "playchess.com"]
[Source "ChessBase"]
[SourceQuality "1"]
[TimeControl "5400+30"]

1. c4 {[%emt 0:00:00]} b6 {[%emt 0:00:00]} 2. Nf3 {[%emt 0:01:43]} Bb7 {[%emt 0:00:18]} 3. g3 {[%emt 0:02:29]} e6 {[%emt 0:00:43]} 4. Bg2 {[%emt 0:00:33]} Nf6 {[%emt 0:00:38]} 5. O-O {[%emt 0:01:31]} Be7 {[%emt 0:00:20]} 6. Nc3 {[%emt 0:01:32]} O-O {[%emt 0:01:11]} 7. d3 {[%emt 0:02:38]} c5 {[%emt 0:04:09]} 8. Bf4 {[%emt 0:01:42]} a6 {[%emt 0:07:14]} 9. a3 {[%emt 0:04:06]} d5 {[%emt 0:03:47]} 10. cxd5 {[%emt 0:04:53]} Nxd5 {[%emt 0:02:45]} 11. Nxd5 {[%emt 0:01:09]} Bxd5 {[%emt 0:02:35]} 12. Qd2 {[%emt 0:04:33]} f6 {[%emt 0:09:08]} 13. Qc2 {[%emt 0:06:18]} Ra7 {[%emt 0:03:59]} 14. Rfd1 {[%emt 0:03:24]} e5 {[%emt 0:03:35]} 15. Bd2 {[%emt 0:01:10]} Rc7 {[%emt 0:03:31]} 16. b3 {[%emt 0:10:19]} Nc6 {[%emt 0:01:53]} 17. Rdb1 {[%emt 0:04:07]} Qd7 {[%emt 0:03:27]} 18. e4 {[%emt 0:12:37]} Be6 {[%emt 0:01:47]} 19. Be3 {[%emt 0:06:55]} Rfc8 {[%emt 0:04:00]} 20. Qd2 {[%emt 0:01:35]} Nd4 {[%emt 0:03:52]} 21. Qd1 {[%emt 0:03:14]} Bg4 {[%emt 0:04:13]} 22. Ra2 {[%emt 0:03:54]} Nxf3+ {[%emt 0:06:05]} 23. Bxf3 {[%emt 0:00:11]} Bxf3 {[%emt 0:00:34]} 24. Qxf3 {[%emt 0:00:08]} Qxd3 {[%emt 0:00:38]} 25. Raa1 {[%emt 0:02:41]} b5 {[%emt 0:08:38]} 26. Qf5 {[%emt 0:02:12]} Qd7 {[%emt 0:03:10]} 27. Qf3 {[%emt 0:02:17]} Qe6 {[%emt 0:03:47]} 28. Qd1 {[%emt 0:02:19]} c4 {[%emt 0:03:53]} 29. bxc4 {[%emt 0:04:07]} Rxc4 {[%emt 0:04:26]} 30. Qf3 {[%emt 0:00:59]} Rc3 {[%emt 0:02:24]} 31. a4 {[%emt 0:00:43]} b4 {[%emt 0:01:01]} 32. Qe2 {[%emt 0:01:31]} Rc2 {[%emt 0:01:55]} 33. Qe1 {[%emt 0:01:21]} b3 {[%emt 0:01:21]} 34. Bc1 {[%emt 0:01:02]} Bc5 {[%emt 0:01:36]} 35. Rb2 {[%emt 0:00:55]} Bxf2+ {[%emt 0:01:19]} 36. Qxf2 {[%emt 0:00:08]} Rxf2 {[%emt 0:00:56]} 37. Kxf2 {[%emt 0:00:03]} Qc4 {[%emt 0:00:25]} 38. Kg1 {[%emt 0:01:58]} Qd3 {[%emt 0:01:10]} 39. Rab1 {[%emt 0:01:31]} Qd1+ {[%emt 0:00:39]} 40. Kg2 {[%emt 0:00:23]} Rc2+ {[%emt 0:00:50]} 41. Rxc2 {[%emt 0:00:02]} Qxc2+ {[%emt 0:00:10]} 0-1

[Event "ENG-ch Women 2019"]
[Site "Hull"]
[Date "2019.08.31"]
[Round "2.13"]
[White "Bridgeman, Niamh"]
[Black "Chaban, Roxolana"]
[Result "1-0"]
[ECO "A03"]
[WhiteElo "1511"]
[BlackElo "1281"]
[Annotator "NA"]
[PlyCount "63"]
[EventDate "2019.08.30"]
[EventType "swiss"]
[EventCountry "ENG"]
[SourceTitle "playchess.com"]
[Source "ChessBase"]
[SourceQuality "1"]
[TimeControl "5400+30"]

1. f4 {[%emt 0:00:00]} d5 {[%emt 0:00:00]} 2. Nf3 {[%emt 0:00:00]} Nf6 {[%emt 0:00:00]} 3. e3 {[%emt 0:00:00]} g6 {[%emt 0:00:03]} 4. Be2 {[%emt 0:00:11]} Bg7 {[%emt 0:00:23]} 5. O-O {[%emt 0:00:22]} O-O {[%emt 0:00:43]} 6. d3 {[%emt 0:00:22]} c5 {[%emt 0:01:55]} 7. Nc3 {[%emt 0:01:30]} Bf5 {[%emt 0:05:21]} 8. Nd2 {[%emt 0:15:47]} d4 {[%emt 0:08:37]} 9. Nce4 {[%emt 0:09:38]} Nxe4 {[%emt 0:09:08]} 10. Nxe4 {[%emt 0:04:20]} c4 {[%emt 0:05:27]} 11. g4 {[%emt 0:15:52]} Bxe4 {[%emt 0:13:52]} 12. dxe4 {[%emt 0:00:28]} c3 {[%emt 0:00:56]} 13. b3 {[%emt 0:06:46]} Qb6 {[%emt 0:04:54]} 14. Qd3 {[%emt 0:05:49]} Rd8 {[%emt 0:02:59]} 15. Qb5 {[%emt 0:10:28]} Qxb5 {[%emt 0:05:53]} 16. Bxb5 {[%emt 0:00:10]} a6 {[%emt 0:03:29]} 17. Bd3 {[%emt 0:06:40]} Nc6 {[%emt 0:03:35]} 18. a3 {[%emt 0:02:46]} b5 {[%emt 0:04:31]} 19. Rd1 {[%emt 0:03:34]} dxe3 {[%emt 0:02:34]} 20. Bxe3 {[%emt 0:00:19]} b4 {[%emt 0:02:01]} 21. a4 {[%emt 0:02:33]} a5 {[%emt 0:00:39]} 22. e5 {[%emt 0:01:57]} e6 {[%emt 0:06:20]} 23. Be4 {[%emt 0:02:08]} Rxd1+ {[%emt 0:04:08]} 24. Rxd1 {[%emt 0:00:11]} Rc8 {[%emt 0:00:43]} 25. Bxc6 {[%emt 0:00:43]} Rxc6 {[%emt 0:00:10]} 26. Rd8+ {[%emt 0:00:23]} Bf8 {[%emt 0:00:22]} 27. f5 {[%emt 0:01:20]} h5 {[%emt 0:01:20]} 28. Bh6 {[%emt 0:02:05]} hxg4 {[%emt 0:00:56]} 29. f6 {[%emt 0:01:19]} Rc5 {[%emt 0:00:29]} 30. Bxf8 {[%emt 0:01:38]} Rxe5 {[%emt 0:00:30]} 31. Bg7+ {[%emt 0:00:16]} Kh7 {[%emt 0:00:12]} 32. Rh8# {[%emt 0:00:06]} 1-0

[Event "ENG-ch Women 2019"]
[Site "Hull"]
[Date "2019.08.31"]
[Round "2.14"]
[White "Mackenzie, Kira"]
[Black "Headlong, Georgia"]
[Result "0-1"]
[ECO "D02"]
[WhiteElo "1142"]
[BlackElo "1482"]
[Annotator "NA"]
[PlyCount "104"]
[EventDate "2019.08.30"]
[EventType "swiss"]
[EventCountry "ENG"]
[SourceTitle "playchess.com"]
[Source "ChessBase"]
[SourceQuality "1"]
[TimeControl "5400+30"]

1. d4 {[%emt 0:00:00]} Nf6 {[%emt 0:00:00]} 2. Nf3 {[%emt 0:00:00]} e6 {[%emt 0:00:05]} 3. Bf4 {[%emt 0:01:18]} b6 {[%emt 0:00:34]} 4. e3 {[%emt 0:01:01]} Bb7 {[%emt 0:00:23]} 5. Nbd2 {[%emt 0:00:34]} Be7 {[%emt 0:00:58]} 6. Bd3 {[%emt 0:01:23]} d5 {[%emt 0:01:33]} 7. h3 {[%emt 0:01:37]} Ne4 {[%emt 0:02:13]} 8. c3 {[%emt 0:03:21]} Nd7 {[%emt 0:01:36]} 9. Qc2 {[%emt 0:02:05]} f5 {[%emt 0:02:35]} 10. Bxe4 {[%emt 0:07:18]} fxe4 {[%emt 0:01:00]} 11. Ne5 {[%emt 0:01:21]} Nxe5 {[%emt 0:01:08]} 12. Bxe5 {[%emt 0:00:25]} Bf6 {[%emt 0:01:06]} 13. Bg3 {[%emt 0:07:03]} O-O {[%emt 0:01:42]} 14. c4 {[%emt 0:02:18]} Bh4 {[%emt 0:02:02]} 15. O-O-O {[%emt 0:04:50]} Bxg3 {[%emt 0:01:28]} 16. fxg3 {[%emt 0:00:17]} Rf2 {[%emt 0:01:00]} 17. Rhg1 {[%emt 0:01:52]} Qd6 {[%emt 0:04:15]} 18. Rdf1 {[%emt 0:05:27]} Raf8 {[%emt 0:01:40]} 19. Rxf2 {[%emt 0:04:06]} Rxf2 {[%emt 0:00:18]} 20. Qa4 {[%emt 0:01:16]} a5 {[%emt 0:04:08]} 21. Rf1 {[%emt 0:00:50]} Rxf1+ {[%emt 0:01:12]} 22. Nxf1 {[%emt 0:00:07]} Bc6 {[%emt 0:01:28]} 23. Qc2 {[%emt 0:00:51]} e5 {[%emt 0:05:53]} 24. c5 {[%emt 0:02:04]} bxc5 {[%emt 0:05:02]} 25. Qxc5 {[%emt 0:00:18]} Qxc5+ {[%emt 0:00:22]} 26. dxc5 {[%emt 0:00:05]} Kf7 {[%emt 0:02:48]} 27. Nd2 {[%emt 0:03:27]} Ke6 {[%emt 0:01:04]} 28. Nb3 {[%emt 0:00:39]} a4 {[%emt 0:00:33]} 29. Na5 {[%emt 0:00:54]} Bb5 {[%emt 0:00:43]} 30. b4 {[%emt 0:01:00]} axb3 {[%emt 0:01:43]} 31. Nxb3 {[%emt 0:00:59]} Bc4 {[%emt 0:01:59]} 32. Kd2 {[%emt 0:00:21]} Kd7 {[%emt 0:01:20]} 33. Kc3 {[%emt 0:01:00]} Bxb3 {[%emt 0:01:00]} 34. axb3 {[%emt 0:00:16]} Kc6 {[%emt 0:00:14]} 35. b4 {[%emt 0:00:14]} Kb5 {[%emt 0:01:27]} 36. g4 {[%emt 0:00:44]} g5 {[%emt 0:00:54]} 37. g3 {[%emt 0:00:13]} h6 {[%emt 0:00:19]} 38. h4 {[%emt 0:00:14]} Kc6 {[%emt 0:00:47]} 39. Kb3 {[%emt 0:09:17]} d4 {[%emt 0:01:58]} 40. exd4 {[%emt 0:00:12]} exd4 {[%emt 0:00:22]} 41. Kc4 {[%emt 0:00:16]} e3 {[%emt 0:01:52]} 42. b5+ {[%emt 0:00:36]} Kd7 {[%emt 0:00:17]} 43. Kd3 {[%emt 0:00:21]} Ke6 {[%emt 0:00:53]} 44. b6 {[%emt 0:04:18]} cxb6 {[%emt 0:00:12]} 45. cxb6 {[%emt 0:00:04]} Kd6 {[%emt 0:00:08]} 46. Kxd4 {[%emt 0:02:00]} e2 {[%emt 0:00:20]} 47. b7 {[%emt 0:00:17]} Kc7 {[%emt 0:00:16]} 48. Kd3 {[%emt 0:00:13]} e1=Q {[%emt 0:00:15]} 49. hxg5 {[%emt 0:01:06]} hxg5 {[%emt 0:00:18]} 50. b8=Q+ {[%emt 0:00:24]} Kxb8 {[%emt 0:00:00] Kc3 Qxg3+} 51. Kc2 {[%emt 0:00:00] Qxg4 Kd2} Qe4+ {[%emt 0:00:00]} 52. Kc1 {[%emt 0:00:00] g4 Kd2 g3 Kc3 g2 Kb2 g1=R Ka3 Rg3+ Kb2} Qe2 {[%emt 0:00:00] Kc1 Rg1#} 0-1

[Event "ENG-ch Women 2019"]
[Site "Hull"]
[Date "2019.08.31"]
[Round "2.15"]
[White "Boztas, Lana"]
[Black "Cakova, Monika"]
[Result "1-0"]
[ECO "A10"]
[WhiteElo "1475"]
[BlackElo "1150"]
[Annotator "NA"]
[PlyCount "27"]
[EventDate "2019.08.30"]
[EventType "swiss"]
[EventCountry "ENG"]
[SourceTitle "playchess.com"]
[Source "ChessBase"]
[SourceQuality "1"]
[TimeControl "5400+30"]

1. c4 {[%emt 0:00:00]} b6 {[%emt 0:00:03]} 2. Nc3 {[%emt 0:00:00]} Bb7 {[%emt 0:00:14]} 3. Nf3 {[%emt 0:00:30]} e6 {[%emt 0:00:21]} 4. a3 {[%emt 0:00:13]} c5 {[%emt 0:01:14]} 5. d3 {[%emt 0:01:16]} Nc6 {[%emt 0:02:04]} 6. Bf4 {[%emt 0:03:48]} Nf6 {[%emt 0:02:11]} 7. Nb5 {[%emt 0:01:43]} Rc8 {[%emt 0:02:10]} 8. Nd6+ {[%emt 0:00:46]} Bxd6 {[%emt 0:01:07]} 9. Bxd6 {[%emt 0:00:10]} h6 {[%emt 0:01:25]} 10. e4 {[%emt 0:02:41]} Nd4 {[%emt 0:04:16]} 11. Nxd4 {[%emt 0:00:51]} cxd4 {[%emt 0:00:33]} 12. e5 {[%emt 0:00:54]} Nh7 {[%emt 0:01:41]} 13. h4 {[%emt 0:05:15]} f6 {[%emt 0:00:55]} 14. Qh5+ {[%emt 0:00:37]} 1-0

[Event "ENG-ch Women 2019"]
[Site "Hull"]
[Date "2019.08.31"]
[Round "3.1"]
[White "Jaufarally, Nadia"]
[Black "Toma, Katarzyna"]
[Result "0-1"]
[ECO "B33"]
[WhiteElo "1934"]
[BlackElo "2229"]
[Annotator "NA"]
[PlyCount "78"]
[EventDate "2019.08.30"]
[EventType "swiss"]
[EventCountry "ENG"]
[SourceTitle "playchess.com"]
[Source "ChessBase"]
[SourceQuality "1"]
[TimeControl "5400+30"]

1. e4 {[%emt 0:00:00]} c5 {[%emt 0:00:00]} 2. Nf3 {[%emt 0:00:00]} Nc6 {[%emt 0:00:00]} 3. d4 {[%emt 0:00:00]} cxd4 {[%emt 0:00:00]} 4. Nxd4 {[%emt 0:00:00]} Nf6 {[%emt 0:00:54]} 5. Nc3 {[%emt 0:00:18]} e5 {[%emt 0:01:05]} 6. Ndb5 {[%emt 0:00:19]} d6 {[%emt 0:00:07]} 7. Bg5 {[%emt 0:00:35]} a6 {[%emt 0:00:06]} 8. Na3 {[%emt 0:00:09]} b5 {[%emt 0:00:12]} 9. Bxf6 {[%emt 0:00:22]} gxf6 {[%emt 0:01:32]} 10. Nd5 {[%emt 0:00:43]} Bg7 {[%emt 0:00:39]} 11. Bd3 {[%emt 0:03:17]} Be6 {[%emt 0:01:59]} 12. O-O {[%emt 0:01:56]} f5 {[%emt 0:08:05]} 13. c3 {[%emt 0:02:22]} Bxd5 {[%emt 0:02:33]} 14. exd5 {[%emt 0:00:13]} Ne7 {[%emt 0:00:04]} 15. Qh5 {[%emt 0:02:01]} e4 {[%emt 0:05:02]} 16. Be2 {[%emt 0:01:24]} Qc8 {[%emt 0:04:50]} 17. Rad1 {[%emt 0:03:21]} Ng6 {[%emt 0:02:24]} 18. Qg5 {[%emt 0:07:20]} O-O {[%emt 0:01:48]} 19. f3 {[%emt 0:28:14]} Qc5+ {[%emt 0:02:05]} 20. Kh1 {[%emt 0:00:21]} Rae8 {[%emt 0:00:15]} 21. fxe4 {[%emt 0:08:10]} f4 {[%emt 0:07:07]} 22. Bd3 {[%emt 0:05:48]} Re5 {[%emt 0:04:33]} 23. Qg4 {[%emt 0:00:25]} h5 {[%emt 0:01:51]} 24. Qf3 {[%emt 0:02:23]} Rg5 {[%emt 0:00:48]} 25. Qf2 {[%emt 0:03:58]} Qc8 {[%emt 0:00:23]} 26. Nc2 {[%emt 0:02:28]} Kh8 {[%emt 0:05:59]} 27. Ne1 {[%emt 0:07:10]} Rg8 {[%emt 0:01:48]} 28. Rc1 {[%emt 0:05:38]} Qd8 {[%emt 0:10:26]} 29. Nf3 {[%emt 0:07:18]} Rg4 {[%emt 0:00:16]} 30. Be2 {[%emt 0:00:55]} h4 {[%emt 0:12:38]} 31. Nd4 {[%emt 0:03:28]} Rg5 {[%emt 0:03:36]} 32. Nf5 {[%emt 0:00:58]} Be5 {[%emt 0:02:21]} 33. Nxh4 {[%emt 0:00:50]} Nxh4 {[%emt 0:00:16]} 34. Qxh4+ {[%emt 0:00:04]} Kg7 {[%emt 0:00:03]} 35. Qf2 {[%emt 0:01:22]} Rh8 {[%emt 0:01:12]} 36. h3 {[%emt 0:01:12]} Rg3 {[%emt 0:00:33]} 37. Bf3 {[%emt 0:02:44]} Qg5 {[%emt 0:06:19]} 38. Kh2 {[%emt 0:00:24]} Qh4 {[%emt 0:00:20]} 39. Rc2 {[%emt 0:00:24]} Qxh3+ {[%emt 0:00:17]} 0-1

[Event "ENG-ch Women 2019"]
[Site "Hull"]
[Date "2019.08.31"]
[Round "3.2"]
[White "Longson, Sarah N"]
[Black "Head, Louise"]
[Result "0-1"]
[ECO "B14"]
[WhiteElo "2095"]
[BlackElo "2092"]
[Annotator "NA"]
[PlyCount "42"]
[EventDate "2019.08.30"]
[EventType "swiss"]
[EventCountry "ENG"]
[SourceTitle "playchess.com"]
[Source "ChessBase"]
[SourceQuality "1"]
[TimeControl "5400+30"]

1. e4 {[%emt 0:00:00]} c6 {[%emt 0:00:00]} 2. d4 {[%emt 0:00:00]} d5 {[%emt 0:00:00]} 3. exd5 {[%emt 0:00:00]} cxd5 {[%emt 0:00:00]} 4. c4 {[%emt 0:00:01]} Nf6 {[%emt 0:00:00]} 5. Nc3 {[%emt 0:00:06]} e6 {[%emt 0:00:01]} 6. Bg5 {[%emt 0:01:02]} Be7 {[%emt 0:00:54]} 7. Nf3 {[%emt 0:00:06]} O-O {[%emt 0:00:41]} 8. cxd5 {[%emt 0:02:30]} Nxd5 {[%emt 0:02:27]} 9. Nxd5 {[%emt 0:01:08]} Bxg5 {[%emt 0:11:15]} 10. h4 {[%emt 0:12:59]} Bf6 {[%emt 0:30:32]} 11. Nxf6+ {[%emt 0:01:43]} Qxf6 {[%emt 0:00:04]} 12. Ne5 {[%emt 0:16:32]} Nc6 {[%emt 0:04:16]} 13. Nxc6 {[%emt 0:03:53]} bxc6 {[%emt 0:00:03]} 14. Qa4 {[%emt 0:07:25]} e5 {[%emt 0:01:55]} 15. O-O-O {[%emt 0:11:16]} Qxf2 {[%emt 0:09:40]} 16. Rd2 {[%emt 0:11:55]} Qf4 {[%emt 0:06:13]} 17. Bd3 {[%emt 0:00:49]} exd4 {[%emt 0:01:43]} 18. Qxc6 {[%emt 0:05:16]} Be6 {[%emt 0:03:53]} 19. Qe4 {[%emt 0:00:29]} Rfc8+ {[%emt 0:02:13]} 20. Kb1 {[%emt 0:08:49]} Qxd2 {[%emt 0:00:16]} 21. Qxh7+ {[%emt 0:00:05]} Kf8 {[%emt 0:00:05]} 0-1

[Event "ENG-ch Women 2019"]
[Site "Hull"]
[Date "2019.08.31"]
[Round "3.3"]
[White "Bhatia, Kanwal K"]
[Black "Varney, Zoe"]
[Result "1-0"]
[ECO "C52"]
[WhiteElo "2044"]
[BlackElo "1975"]
[Annotator "NA"]
[PlyCount "109"]
[EventDate "2019.08.30"]
[EventType "swiss"]
[EventCountry "ENG"]
[SourceTitle "playchess.com"]
[Source "ChessBase"]
[SourceQuality "1"]
[TimeControl "5400+30"]

1. e4 {[%emt 0:00:00]} e5 {[%emt 0:00:00]} 2. Nf3 {[%emt 0:00:00]} Nc6 {[%emt 0:00:00]} 3. Bc4 {[%emt 0:00:00]} Bc5 {[%emt 0:00:00]} 4. b4 {[%emt 0:00:36]} Bxb4 {[%emt 0:00:05]} 5. c3 {[%emt 0:00:04]} Ba5 {[%emt 0:01:35]} 6. d4 {[%emt 0:00:21]} exd4 {[%emt 0:00:50]} 7. Qb3 {[%emt 0:00:32]} Qe7 {[%emt 0:08:12]} 8. O-O {[%emt 0:00:38]} Bb6 {[%emt 0:09:37]} 9. Ba3 {[%emt 0:04:29]} d6 {[%emt 0:04:53]} 10. cxd4 {[%emt 0:00:16]} Nxd4 {[%emt 0:12:45]} 11. Nxd4 {[%emt 0:00:56]} Bxd4 {[%emt 0:00:05]} 12. Nc3 {[%emt 0:00:26]} Nf6 {[%emt 0:26:59]} 13. Rad1 {[%emt 0:22:28]} Bxc3 {[%emt 0:10:57]} 14. Qxc3 {[%emt 0:00:05]} O-O {[%emt 0:00:12]} 15. e5 {[%emt 0:01:31]} Ne4 {[%emt 0:07:59]} 16. Qd4 {[%emt 0:11:03]} Qxe5 {[%emt 0:00:49]} 17. Qxe5 {[%emt 0:00:17]} dxe5 {[%emt 0:00:03]} 18. Bxf8 {[%emt 0:00:17]} Kxf8 {[%emt 0:00:04]} 19. Rfe1 {[%emt 0:00:29]} Nd6 {[%emt 0:05:49]} 20. Rxe5 {[%emt 0:07:06]} Bd7 {[%emt 0:02:37]} 21. Bd5 {[%emt 0:03:35]} Re8 {[%emt 0:02:01]} 22. Rxe8+ {[%emt 0:04:21]} Kxe8 {[%emt 0:00:21]} 23. Kf1 {[%emt 0:00:52]} Bb5+ {[%emt 0:01:41]} 24. Ke1 {[%emt 0:00:33]} Bc4 {[%emt 0:00:19]} 25. Bxc4 {[%emt 0:04:36]} Nxc4 {[%emt 0:00:05]} 26. Rd4 {[%emt 0:01:16]} Nd6 {[%emt 0:00:32]} 27. Kd2 {[%emt 0:00:15]} Kd7 {[%emt 0:01:07]} 28. Rd3 {[%emt 0:02:20]} c5 {[%emt 0:00:51]} 29. Kc2 {[%emt 0:01:11]} Kc6 {[%emt 0:00:26]} 30. Re3 {[%emt 0:01:47]} Nf5 {[%emt 0:01:32]} 31. Re8 {[%emt 0:00:37]} b5 {[%emt 0:01:10]} 32. Ra8 {[%emt 0:04:27]} Kb7 {[%emt 0:00:48]} 33. Rf8 {[%emt 0:00:46]} f6 {[%emt 0:00:34]} 34. Rf7+ {[%emt 0:00:24]} Kb6 {[%emt 0:00:06]} 35. g4 {[%emt 0:00:17]} Nd4+ {[%emt 0:00:10]} 36. Kb2 {[%emt 0:01:12]} Nf3 {[%emt 0:00:49]} 37. h3 {[%emt 0:00:56]} Ng5 {[%emt 0:00:23]} 38. Rxg7 {[%emt 0:00:24]} Nxh3 {[%emt 0:00:08]} 39. Rf7 {[%emt 0:00:23]} c4 {[%emt 0:00:39]} 40. Rxf6+ {[%emt 0:00:05]} Kc5 {[%emt 0:00:12]} 41. Rf5+ {[%emt 0:00:21]} Kb4 {[%emt 0:00:13]} 42. Rf3 {[%emt 0:05:13]} Ng5 {[%emt 0:00:16]} 43. Re3 {[%emt 0:00:10]} a5 {[%emt 0:00:51]} 44. f4 {[%emt 0:00:20]} Nf7 {[%emt 0:00:04]} 45. f5 {[%emt 0:00:46]} Ka4 {[%emt 0:01:30]} 46. Re7 {[%emt 0:03:37]} Ng5 {[%emt 0:00:14]} 47. f6 {[%emt 0:01:33]} b4 {[%emt 0:00:17]} 48. f7 {[%emt 0:01:02]} c3+ {[%emt 0:00:07]} 49. Kb1 {[%emt 0:01:11]} Nxf7 {[%emt 0:00:04]} 50. Rxf7 {[%emt 0:00:05]} Ka3 {[%emt 0:00:06]} 51. Rf3 {[%emt 0:01:15]} a4 {[%emt 0:00:49]} 52. Rh3 {[%emt 0:00:21]} h6 {[%emt 0:00:17]} 53. Rf3 {[%emt 0:00:23]} b3 {[%emt 0:00:07]} 54. Rxc3 {[%emt 0:01:06]} Kb4 {[%emt 0:00:04]} 55. Rh3 {[%emt 0:00:24]} 1-0

[Event "ENG-ch Women 2019"]
[Site "Hull"]
[Date "2019.08.31"]
[Round "3.4"]
[White "Jayawarna, Thisumi"]
[Black "Posadas, Rayelynn"]
[Result "0-1"]
[ECO "C58"]
[WhiteElo "1125"]
[BlackElo "1885"]
[Annotator "NA"]
[PlyCount "48"]
[EventDate "2019.08.30"]
[EventType "swiss"]
[EventCountry "ENG"]
[SourceTitle "playchess.com"]
[Source "ChessBase"]
[SourceQuality "1"]
[TimeControl "5400+30"]

1. e4 {[%emt 0:00:00]} e5 {[%emt 0:00:00]} 2. Nf3 {[%emt 0:00:00]} Nc6 {[%emt 0:00:00]} 3. Bc4 {[%emt 0:00:00]} Nf6 {[%emt 0:02:10]} 4. Ng5 {[%emt 0:00:30]} d5 {[%emt 0:05:56]} 5. exd5 {[%emt 0:00:09]} Na5 {[%emt 0:02:10]} 6. Bb5+ {[%emt 0:00:17]} Bd7 {[%emt 0:00:21]} 7. Bxd7+ {[%emt 0:06:15]} Qxd7 {[%emt 0:00:28]} 8. Nc3 {[%emt 0:03:12]} Nxd5 {[%emt 0:04:11]} 9. Qe2 {[%emt 0:01:54]} O-O-O {[%emt 0:01:12]} 10. O-O {[%emt 0:09:12]} f6 {[%emt 0:04:47]} 11. Nge4 {[%emt 0:02:44]} Nc6 {[%emt 0:03:00]} 12. Nxd5 {[%emt 0:02:17]} Qxd5 {[%emt 0:00:08]} 13. c3 {[%emt 0:01:45]} f5 {[%emt 0:03:42]} 14. Ng3 {[%emt 0:01:57]} g6 {[%emt 0:00:03]} 15. b4 {[%emt 0:02:09]} h5 {[%emt 0:00:43]} 16. f3 {[%emt 0:03:23]} Bxb4 {[%emt 0:03:24]} 17. cxb4 {[%emt 0:01:51]} Qd4+ {[%emt 0:01:28]} 18. Qf2 {[%emt 0:02:53]} Qxa1 {[%emt 0:00:15]} 19. b5 {[%emt 0:00:36]} Nd4 {[%emt 0:00:01]} 20. d3 {[%emt 0:04:12]} Qc3 {[%emt 0:01:56]} 21. Rd1 {[%emt 0:07:57]} Nxb5 {[%emt 0:02:18]} 22. Bb2 {[%emt 0:01:39]} Qc6 {[%emt 0:02:16]} 23. Bxe5 {[%emt 0:00:52]} Rhe8 {[%emt 0:00:24]} 24. d4 {[%emt 0:02:18]} Rxe5 {[%emt 0:00:23]} 0-1

[Event "ENG-ch Women 2019"]
[Site "Hull"]
[Date "2019.08.31"]
[Round "3.5"]
[White "Maladkar, Lavanya"]
[Black "Headlong, Fenella"]
[Result "1/2-1/2"]
[ECO "E14"]
[WhiteElo "1647"]
[BlackElo "1761"]
[Annotator "NA"]
[PlyCount "63"]
[EventDate "2019.08.30"]
[EventType "swiss"]
[EventCountry "ENG"]
[SourceTitle "playchess.com"]
[Source "ChessBase"]
[SourceQuality "1"]
[TimeControl "5400+30"]

1. d4 {[%emt 0:00:00]} d5 {[%emt 0:00:00]} 2. c4 {[%emt 0:00:00]} e6 {[%emt 0:00:00]} 3. Nc3 {[%emt 0:00:00]} Nf6 {[%emt 0:00:00]} 4. Nf3 {[%emt 0:00:30]} Be7 {[%emt 0:01:15]} 5. e3 {[%emt 0:04:59]} O-O {[%emt 0:02:15]} 6. Qc2 {[%emt 0:02:41]} b6 {[%emt 0:03:16]} 7. b3 {[%emt 0:02:48]} Bb7 {[%emt 0:02:07]} 8. Be2 {[%emt 0:01:39]} Nbd7 {[%emt 0:08:53]} 9. O-O {[%emt 0:01:05]} c5 {[%emt 0:11:25]} 10. Bb2 {[%emt 0:03:59]} Rc8 {[%emt 0:02:29]} 11. Rac1 {[%emt 0:03:07]} cxd4 {[%emt 0:05:38]} 12. Nxd4 {[%emt 0:03:28]} a6 {[%emt 0:14:05]} 13. Qd2 {[%emt 0:05:15]} Bb4 {[%emt 0:09:08]} 14. f3 {[%emt 0:05:55]} dxc4 {[%emt 0:01:02]} 15. Bxc4 {[%emt 0:04:21]} b5 {[%emt 0:00:26]} 16. Be2 {[%emt 0:03:44]} Nd5 {[%emt 0:05:59]} 17. a3 {[%emt 0:03:32]} Bxc3 {[%emt 0:01:19]} 18. Bxc3 {[%emt 0:00:23]} Nxc3 {[%emt 0:00:09]} 19. Rxc3 {[%emt 0:00:31]} Rxc3 {[%emt 0:00:25]} 20. Qxc3 {[%emt 0:02:27]} Qb6 {[%emt 0:11:18]} 21. Rd1 {[%emt 0:04:36]} Rc8 {[%emt 0:02:49]} 22. Qd2 {[%emt 0:02:44]} Nf6 {[%emt 0:00:38]} 23. a4 {[%emt 0:09:49]} b4 {[%emt 0:04:51]} 24. Kh1 {[%emt 0:03:27]} Nd5 {[%emt 0:00:22]} 25. Bc4 {[%emt 0:02:50]} Nc3 {[%emt 0:00:28]} 26. Rf1 {[%emt 0:01:37]} e5 {[%emt 0:01:09]} 27. Nf5 {[%emt 0:04:38]} Rd8 {[%emt 0:00:08]} 28. Qf2 {[%emt 0:01:03]} Qf6 {[%emt 0:03:30]} 29. g4 {[%emt 0:09:45]} Rd7 {[%emt 0:01:08]} 30. h3 {[%emt 0:02:45]} g6 {[%emt 0:00:06]} 31. Nh6+ Kf8 32. Nf5 {[%emt 0:00:06]} 1/2-1/2

[Event "ENG-ch Women 2019"]
[Site "Hull"]
[Date "2019.08.31"]
[Round "3.6"]
[White "Zhu, Yaoyao"]
[Black "Milewska, Agnieszka"]
[Result "1/2-1/2"]
[ECO "C54"]
[WhiteElo "1842"]
[BlackElo "1660"]
[Annotator "NA"]
[PlyCount "54"]
[EventDate "2019.08.30"]
[EventType "swiss"]
[EventCountry "ENG"]
[SourceTitle "playchess.com"]
[Source "ChessBase"]
[SourceQuality "1"]
[TimeControl "5400+30"]

1. e4 {[%emt 0:00:00]} e5 {[%emt 0:03:40]} 2. Nf3 {[%emt 0:00:00]} Nc6 {[%emt 0:00:43]} 3. Bc4 {[%emt 0:00:00]} Bc5 {[%emt 0:00:15]} 4. c3 {[%emt 0:00:01]} Nf6 {[%emt 0:00:28]} 5. d3 {[%emt 0:00:12]} O-O {[%emt 0:00:10]} 6. Bb3 {[%emt 0:00:52]} d6 {[%emt 0:00:20]} 7. Nbd2 {[%emt 0:00:22]} Bg4 {[%emt 0:00:50]} 8. Nf1 {[%emt 0:02:50]} h6 {[%emt 0:02:41]} 9. h3 {[%emt 0:02:14]} Bh5 {[%emt 0:00:53]} 10. Ng3 {[%emt 0:00:09]} Bg6 {[%emt 0:00:15]} 11. O-O {[%emt 0:06:53]} Kh7 {[%emt 0:00:59]} 12. Be3 {[%emt 0:04:02]} Bxe3 {[%emt 0:01:06]} 13. fxe3 {[%emt 0:00:32]} d5 {[%emt 0:03:19]} 14. exd5 {[%emt 0:13:06]} Nxd5 {[%emt 0:00:19]} 15. Qe2 {[%emt 0:05:30]} f5 {[%emt 0:06:54]} 16. Bxd5 {[%emt 0:03:09]} Qxd5 {[%emt 0:00:43]} 17. Nh4 {[%emt 0:00:28]} Qe6 {[%emt 0:02:36]} 18. e4 {[%emt 0:15:56]} f4 {[%emt 0:02:49]} 19. Nxg6 {[%emt 0:01:40]} Qxg6 {[%emt 0:00:33]} 20. Nf5 {[%emt 0:00:54]} Rad8 {[%emt 0:01:00]} 21. Rad1 {[%emt 0:02:08]} Rd7 {[%emt 0:03:43]} 22. d4 {[%emt 0:03:43]} Ne7 {[%emt 0:11:12]} 23. Qb5 {[%emt 0:13:17]} Nxf5 {[%emt 0:03:53]} 24. exf5 {[%emt 0:00:05]} Qxf5 {[%emt 0:00:08]} 25. Qxe5 {[%emt 0:00:41]} Qxe5 {[%emt 0:02:50]} 26. dxe5 {[%emt 0:00:06]} Re7 {[%emt 0:01:20]} 27. Rd4 {[%emt 0:03:57]} Rxe5 {[%emt 0:01:29]} 1/2-1/2